bitfinex/quotes_BTCUSD_20250519
["timestamp","ask_amount","ask_price","bid_price","bid_amount"]
[1747635193586,0.00425242,103130.0,103120.0,0.87419147]
[1747635193811,0.01556689,103140.0,103130.0,0.2689592]
[1747635194028,0.01604864,103140.0,103130.0,0.22301835]
[1747635194268,0.01604864,103140.0,103130.0,0.45123835]
[1747635194486,0.01604864,103140.0,103130.0,0.54854775]
[1747635194688,0.01604864,103140.0,103130.0,0.54415579]
[1747635194895,0.01604864,103140.0,103130.0,0.55025204]
[1747635195359,0.04013361,103140.0,103130.0,0.55861625]
[1747635195673,0.01104864,103140.0,103130.0,0.55861625]
[1747635195806,0.02074335,103140.0,103130.0,0.55861625]
[1747635196000,0.04982916,103140.0,103130.0,0.57471625]
[1747635196212,0.04982916,103140.0,103130.0,0.36219625]
[1747635196447,0.04982907,103140.0,103130.0,0.36219625]
[1747635196659,0.03043834,103140.0,103130.0,0.37189265]
[1747635196867,0.01104864,103140.0,103130.0,0.66923564]
[1747635197076,0.01104864,103140.0,103130.0,0.67893204]
[1747635197286,0.20495982,103140.0,103130.0,1.11770816]
[1747635197498,0.01104864,103140.0,103130.0,1.130404]
[1747635197997,0.01104864,103140.0,103130.0,1.12070816]
[1747635198498,0.01104864,103140.0,103130.0,1.13040409]
[1747635198948,0.01104864,103140.0,103130.0,1.15464078]
[1747635199590,0.02074335,103140.0,103130.0,1.14494503]
[1747635200011,0.02074335,103140.0,103130.0,1.15464096]
[1747635201095,0.02074335,103140.0,103130.0,1.15251996]
[1747635201302,0.03043815,103140.0,103130.0,1.15251996]
[1747635201521,0.22434943,103140.0,103130.0,0.93919783]
[1747635201739,0.25343487,103140.0,103130.0,0.90192058]
[1747635201918,0.25343477,103140.0,103130.0,0.91161698]
[1747635202173,0.2437395,103140.0,103130.0,0.92131329]
[1747635202384,0.23404442,103140.0,103130.0,0.94070562]
[1747635202582,0.23404442,103140.0,103130.0,0.9473095]
[1747635203024,0.22434943,103140.0,103130.0,1.15093561]
[1747635203298,0.01104864,103140.0,103130.0,1.1751723]
[1747635203549,0.02074335,103140.0,103130.0,1.1751723]
[1747635203938,0.03043825,103140.0,103130.0,1.1751723]
[1747635204152,0.02074335,103140.0,103130.0,1.1751723]
[1747635204313,0.02074335,103140.0,103130.0,1.18531342]
[1747635204544,0.03043825,103140.0,103130.0,1.18531342]
[1747635204727,0.04013333,103140.0,103130.0,1.18531351]
[1747635205061,0.03043825,103140.0,103130.0,1.18531295]
[1747635206251,0.02074335,103140.0,103130.0,1.18531295]
[1747635206457,0.03043825,103140.0,103130.0,1.18531295]
[1747635206657,0.03043825,103140.0,103130.0,1.17773802]
[1747635206861,0.02074335,103140.0,103130.0,1.17773802]
[1747635207257,0.03043825,103140.0,103130.0,1.17773802]
[1747635207485,0.03043815,103140.0,103130.0,1.17773802]
[1747635209033,0.04013314,103140.0,103130.0,1.17773802]
[1747635209610,0.23404432,103140.0,103130.0,1.15174227]
[1747635209808,0.22435027,103140.0,103130.0,0.35923737]
[1747635210010,0.25555027,103140.0,103130.0,0.57967737]
[1747635210586,0.25555027,103140.0,103130.0,0.56953625]
[1747635210786,0.23965027,103140.0,103130.0,0.78285913]
[1747635211041,0.23965065,103140.0,103130.0,0.56953625]
[1747635211247,0.25535065,103140.0,103130.0,0.56953625]
[1747635211819,0.23965065,103140.0,103130.0,0.34909625]
[1747635212027,0.25535065,103140.0,103130.0,0.57923274]
[1747635212186,0.24565528,103140.0,103130.0,0.57923274]
[1747635212784,0.24565528,103140.0,103130.0,0.58892905]
[1747635213198,0.24565528,103140.0,103130.0,0.78285904]
[1747635213401,0.22995528,103140.0,103130.0,0.78285913]
[1747635213620,0.02634864,103140.0,103130.0,0.80059077]
[1747635213843,0.03043834,103140.0,103130.0,0.81998273]
[1747635214044,0.04982879,103140.0,103130.0,0.81998273]
[1747635214372,0.05952425,103140.0,103130.0,0.81998273]
[1747635214711,0.04982879,103140.0,103130.0,0.81998273]
[1747635214921,0.04982869,103140.0,103130.0,0.81998273]
[1747635215529,0.02074335,103140.0,103130.0,0.94683298]
[1747635216479,0.03043825,103140.0,103130.0,0.92910134]
[1747635216847,0.04982916,103140.0,103130.0,0.89956067]
[1747635217059,0.24374034,103140.0,103130.0,0.34909625]
[1747635217278,0.25485064,103140.0,103130.0,0.00909625]
[1747635218147,0.35216004,103140.0,103130.0,0.00909625]
[1747635218352,0.35216004,103140.0,103130.0,0.00609625]
[1747635218594,0.3393057,103140.0,103130.0,0.00609625]
[1747635218801,0.58895248,103140.0,103130.0,0.00609625]
[1747635219659,0.3393057,103140.0,103130.0,0.00609625]
[1747635219853,0.3403057,103140.0,103130.0,0.00609625]
[1747635220435,0.25533968,103120.0,103110.0,0.24079739]
[1747635220778,0.245643,103120.0,103110.0,0.2310993]
[1747635220989,0.245643,103120.0,103110.0,0.0177359]
[1747635221619,0.245643,103120.0,103110.0,0.01568271]
[1747635221847,0.245643,103120.0,103110.0,0.22904678]
[1747635221848,0.23273777,103120.0,103110.0,0.22904678]
[1747635222078,0.22304081,103120.0,103110.0,0.22904697]
[1747635222320,0.21334356,103120.0,103110.0,0.02538109]
[1747635222554,0.21914622,103120.0,103110.0,0.01568271]
[1747635222782,0.23564622,103120.0,103110.0,0.01568271]
[1747635224995,0.23564622,103120.0,103110.0,0.00808178]
[1747635227436,0.485293,103120.0,103110.0,0.00808178]
[1747635227638,0.23564622,103120.0,103110.0,0.00808178]
[1747635228058,0.33295562,103120.0,103110.0,0.00808178]
[1747635228917,0.33295562,103120.0,103110.0,0.00608178]
[1747635229126,0.23476598,103110.0,103100.0,0.37164494]
[1747635230725,0.23476598,103110.0,103100.0,0.37364494]
[1747635231240,0.23476598,103110.0,103100.0,0.37210801]
[1747635231995,0.23476598,103110.0,103100.0,0.008064]
[1747635232134,0.48441276,103110.0,103100.0,0.002]
[1747635232334,0.23476598,103110.0,103100.0,0.002]
[1747635233581,0.24446407,103110.0,103100.0,0.20568555]
[1747635233842,0.24446407,103110.0,103100.0,0.19598642]
[1747635234008,0.06019418,103110.0,103100.0,0.22508333]
[1747635234216,0.23826178,103110.0,103100.0,0.21538458]
[1747635234533,0.25346178,103110.0,103100.0,0.21538458]
[1747635234766,0.25346178,103110.0,103100.0,0.2250838]
[1747635234940,0.05949409,103110.0,103100.0,0.22508371]
[1747635235160,0.25346169,103110.0,103100.0,0.22001345]
[1747635235343,0.25346169,103110.0,103100.0,0.22971258]
[1747635235542,0.24376388,103110.0,103100.0,0.23941161]
[1747635235751,0.23406579,103110.0,103100.0,0.24547282]
[1747635235993,0.23406579,103110.0,103100.0,0.23577379]
[1747635235994,0.2243676,103110.0,103100.0,0.23577379]
[1747635236223,0.2243676,103110.0,103100.0,0.02238902]
[1747635237967,0.2233676,103110.0,103100.0,0.02238902]
[1747635238199,0.21054879,103120.0,103100.0,0.24741237]
[1747635238406,0.22996388,103110.0,103100.0,0.02238902]
[1747635239166,0.22936388,103110.0,103100.0,0.02238902]
[1747635239653,0.22936388,103110.0,103100.0,0.02038902]
[1747635239863,0.22936388,103110.0,103100.0,0.01632781]
[1747635240199,0.22936388,103110.0,103100.0,0.01432781]
[1747635240403,0.01939788,103100.0,103090.0,0.58250295]
[1747635240625,0.01939788,103100.0,103090.0,0.56310404]
[1747635240626,0.02909691,103100.0,103090.0,0.56310404]
[1747635240858,0.23278265,103100.0,103090.0,0.34]
[1747635241240,0.23500549,103090.0,103080.0,0.35404205]
[1747635241452,0.23500549,103090.0,103080.0,0.56746822]
[1747635241636,0.02529969,103090.0,103080.0,0.58735133]
[1747635241839,0.02909898,103090.0,103080.0,0.58735133]
[1747635242057,0.06969548,103100.0,103090.0,0.22610487]
[1747635242186,0.05469548,103100.0,103090.0,0.22610487]
[1747635242383,0.0643947,103100.0,103090.0,0.22310487]
[1747635242617,0.02909635,103100.0,103090.0,0.22310487]
[1747635242832,0.03879557,103100.0,103090.0,0.22310487]
[1747635243247,0.03879557,103100.0,103090.0,0.23017052]
[1747635243995,0.04849489,103100.0,103090.0,0.23017052]
[1747635244204,0.02856557,103100.0,103090.0,0.23017061]
[1747635244345,0.04796383,103100.0,103090.0,0.23217061]
[1747635244557,0.03826527,103100.0,103090.0,0.23217061]
[1747635244770,0.2230839,103100.0,103090.0,0.22247092]
[1747635246394,0.21338496,103100.0,103090.0,0.21277104]
[1747635246597,0.21338496,103100.0,103090.0,0.23217108]
[1747635246818,0.00969894,103100.0,103090.0,0.25157037]
[1747635247046,0.02909682,103100.0,103090.0,0.25157037]
[1747635247251,0.23278293,103100.0,103090.0,0.23217108]
[1747635247479,0.23938399,103100.0,103090.0,0.01876591]
[1747635247688,0.25538399,103100.0,103090.0,0.2224713]
[1747635247914,0.24568496,103100.0,103090.0,0.2224713]
[1747635248358,0.24568496,103100.0,103090.0,0.02846607]
[1747635248578,0.24568496,103100.0,103090.0,0.2224713]
[1747635249707,0.23598574,103100.0,103090.0,0.2224713]
[1747635250331,0.22628642,103100.0,103090.0,0.00906565]
[1747635256181,0.22628642,103100.0,103090.0,0.00906565]
[1747635258447,0.2245676,103110.0,103090.0,0.23217024]
[1747635258685,0.22308342,103100.0,103090.0,0.21277095]
[1747635258929,0.01939778,103100.0,103090.0,0.21277095]
[1747635259144,0.03879613,103100.0,103090.0,0.23217043]
[1747635259486,0.04849545,103100.0,103090.0,0.23017062]
[1747635259691,0.23278312,103100.0,103090.0,0.23217062]
[1747635259891,0.23278312,103100.0,103090.0,0.20307088]
[1747635260151,0.21338496,103100.0,103090.0,0.22247121]
[1747635260588,0.21338496,103100.0,103090.0,0.22047121]
[1747635260798,0.21338496,103100.0,103090.0,0.23217118]
[1747635261525,0.21338496,103100.0,103090.0,0.25157066]
[1747635261723,0.21338496,103100.0,103090.0,0.23217118]
[1747635262043,0.21338496,103100.0,103090.0,0.23977211]
[1747635262256,0.21338496,103100.0,103090.0,0.2494719]
[1747635262469,0.24448496,103100.0,103090.0,0.01666658]
[1747635262673,0.23478574,103100.0,103090.0,0.01666658]
[1747635263279,0.23478574,103100.0,103090.0,0.21067181]
[1747635263510,0.21948574,103100.0,103090.0,0.23007204]
[1747635263736,0.21948574,103100.0,103090.0,0.22037207]
[1747635263912,0.20978642,103100.0,103090.0,0.036067]
[1747635264138,0.20978642,103100.0,103090.0,0.02636684]
[1747635264694,0.20978642,103100.0,103090.0,0.23007204]
[1747635264906,0.20978642,103100.0,103090.0,0.22037207]
[1747635265323,0.22598642,103100.0,103090.0,0.22037207]
[1747635265531,0.22598642,103100.0,103090.0,0.02636684]
[1747635265679,0.22598642,103100.0,103090.0,0.01666658]
[1747635265883,0.22598642,103100.0,103090.0,0.21067181]
[1747635266093,0.22598642,103100.0,103090.0,0.02636684]
[1747635267099,0.22598642,103100.0,103090.0,0.01666658]
[1747635267612,0.22598642,103100.0,103090.0,0.02636684]
[1747635267852,0.22598642,103100.0,103090.0,0.036067]
[1747635268036,0.22598642,103100.0,103090.0,0.02636684]
[1747635269593,0.22598642,103100.0,103090.0,0.01666658]
[1747635271991,0.5729426,103100.0,103090.0,0.01666658]
[1747635272870,0.5729426,103100.0,103090.0,0.01466658]
[1747635273102,0.5729426,103100.0,103090.0,0.01366658]
[1747635273328,0.32329582,103100.0,103090.0,0.01285708]
[1747635274650,0.5729426,103100.0,103090.0,0.00525615]
[1747635275632,0.32329582,103100.0,103090.0,0.00525615]
[1747635275863,1.02169582,103100.0,103090.0,0.00525615]
[1747635276067,1.24013582,103100.0,103090.0,0.00525615]
[1747635276748,1.4897826,103100.0,103090.0,0.00525615]
[1747635278149,1.02169582,103100.0,103090.0,0.00525615]
[1747635278368,1.23989582,103100.0,103090.0,0.00525615]
[1747635285827,1.2713426,103100.0,103090.0,0.00525615]
[1747635286047,1.4895826,103100.0,103090.0,0.00525615]
[1747635287392,1.23993582,103100.0,103090.0,0.00525615]
[1747635288617,1.02169582,103100.0,103090.0,0.00525615]
[1747635288839,1.23913582,103100.0,103090.0,0.00525615]
[1747635291075,1.4887826,103100.0,103090.0,0.00525615]
[1747635294588,1.23913582,103100.0,103090.0,0.00525615]
[1747635294754,1.4887826,103100.0,103090.0,0.00525615]
[1747635295431,0.2037053,103090.0,103080.0,0.00692287]
[1747635295635,0.2343053,103090.0,103080.0,0.00692287]
[1747635295849,0.39730467,103090.0,103080.0,0.00692287]
[1747635297122,0.39730467,103090.0,103080.0,0.01400221]
[1747635297333,0.2343053,103090.0,103080.0,0.01400221]
[1747635297712,0.2343053,103090.0,103080.0,0.01600221]
[1747635299317,0.49461407,103090.0,103080.0,0.01600221]
[1747635299536,0.3316147,103090.0,103080.0,0.01600221]
[1747635300480,0.49461407,103090.0,103080.0,0.01600221]
[1747635301069,0.71033407,103090.0,103080.0,0.01600221]
[1747635301539,1.91173344,103090.0,103080.0,0.00992287]
[1747635301723,1.5857347,103090.0,103080.0,0.00792287]
[1747635301934,1.91173344,103090.0,103080.0,0.00692287]
[1747635302595,1.92627429,103090.0,103080.0,0.00692287]
[1747635303897,1.8020147,103090.0,103080.0,0.00692287]
[1747635304102,1.3710147,103090.0,103080.0,0.00692287]
[1747635304309,1.83477465,103090.0,103080.0,0.00692287]
[1747635304723,1.8493155,103090.0,103080.0,0.00692287]
[1747635306251,2.09779545,103090.0,103080.0,0.00692287]
[1747635306694,2.21510485,103090.0,103080.0,0.00692287]
[1747635307103,2.21410485,103090.0,103080.0,0.00692287]
[1747635307254,2.21710485,103090.0,103080.0,0.00692287]
[1747635307663,2.21410485,103090.0,103080.0,0.00692287]
[1747635308081,1.51970485,103090.0,103080.0,0.00692287]
[1747635308446,1.52170485,103090.0,103080.0,0.00692287]
[1747635308652,1.51970485,103090.0,103080.0,0.00692287]
[1747635309010,0.49256787,103050.0,103040.0,0.08538033]
[1747635309239,0.80503727,103050.0,103040.0,0.0855249]
[1747635310252,0.80503727,103050.0,103040.0,0.0875249]
[1747635310677,0.80503727,103050.0,103040.0,0.0077455]
[1747635310982,0.80503727,103050.0,103040.0,0.00014457]
[1747635311198,1.05351722,103050.0,103040.0,0.00014457]
[1747635311658,1.06805807,103050.0,103040.0,0.00014457]
[1747635311858,1.50536747,103050.0,103040.0,0.00114457]
[1747635312064,1.50536747,103050.0,103040.0,0.00014457]
[1747635312535,1.56355747,103050.0,103040.0,0.00014457]
[1747635312715,1.50536747,103050.0,103040.0,0.00014457]
[1747635312927,1.51536747,103050.0,103040.0,0.00014457]
[1747635313507,1.5445059,103050.0,103040.0,0.00014457]
[1747635313714,1.57033462,103050.0,103040.0,0.00014457]
[1747635314191,1.59016829,103050.0,103040.0,0.00014457]
[1747635316394,1.57905572,103050.0,103040.0,0.00014457]
[1747635316627,1.60488444,103050.0,103040.0,0.00014457]
[1747635316986,1.57905572,103050.0,103040.0,0.00014457]
[1747635317637,1.56905572,103050.0,103040.0,0.00014457]
[1747635317839,1.55291729,103050.0,103040.0,0.00014457]
[1747635318154,1.54291729,103050.0,103040.0,0.00014457]
[1747635318802,1.53291729,103050.0,103040.0,0.00014457]
[1747635319115,1.53591729,103050.0,103040.0,0.00014457]
[1747635319747,1.53591729,103050.0,103000.0,0.0787794]
[1747635319748,0.21357082,103010.0,103000.0,0.0787794]
[1747635319962,1.02102017,103010.0,103000.0,0.07882757]
[1747635321450,1.02102017,103010.0,103000.0,0.08082757]
[1747635321660,1.02102017,103010.0,103000.0,0.00304817]
[1747635321899,1.03077179,103010.0,103000.0,0.00304817]
[1747635322106,2.06917179,103010.0,103000.0,0.00304817]
[1747635322482,1.37077179,103010.0,103000.0,0.00304817]
[1747635322702,1.37077179,103010.0,103000.0,0.00104817]
[1747635323237,1.37077179,103010.0,103000.0,0.00204817]
[1747635323459,1.37077179,103010.0,103000.0,0.00404817]
[1747635323591,1.56486179,103010.0,103000.0,0.00404817]
[1747635324783,1.67671204,103010.0,103000.0,0.00404817]
[1747635325272,1.68671204,103010.0,103000.0,0.00404817]
[1747635325442,1.93519199,103010.0,103000.0,0.00404817]
[1747635325615,1.92519199,103010.0,103000.0,0.00204817]
[1747635325780,1.92519199,103010.0,103000.0,0.00104817]
[1747635325981,1.42923209,103010.0,103000.0,0.00104817]
[1747635326198,1.92719199,103010.0,103000.0,0.00104817]
[1747635326405,1.92619199,103010.0,103000.0,0.00104817]
[1747635326881,1.92819199,103010.0,103000.0,0.00104817]
[1747635327634,1.92719199,103010.0,103000.0,0.00104817]
[1747635327809,1.92919199,103010.0,103000.0,0.00104817]
[1747635328011,1.92919199,103010.0,102960.0,0.0930794]
[1747635328012,0.21365378,102970.0,102960.0,0.0930794]
[1747635328184,0.98556313,102970.0,102960.0,0.09356169]
[1747635328390,1.17965313,102970.0,102960.0,0.07826169]
[1747635328983,1.17965313,102970.0,102960.0,0.09406169]
[1747635329189,1.17965313,102970.0,102960.0,0.09806169]
[1747635329492,1.17965313,102970.0,102960.0,0.11436169]
[1747635329877,0.93117318,102970.0,102960.0,0.11836169]
[1747635330647,0.93117318,102970.0,102960.0,0.04058229]
[1747635332287,0.93117318,102970.0,102960.0,0.02428229]
[1747635332515,0.93117318,102970.0,102960.0,0.00848229]
[1747635334195,1.17965313,102970.0,102960.0,0.00848229]
[1747635334916,1.17965313,102970.0,102960.0,0.00448229]
[1747635335170,0.93117318,102970.0,102960.0,0.01588229]
[1747635335676,0.93117318,102970.0,102960.0,0.01788229]
[1747635336000,0.93117318,102970.0,102960.0,0.02088229]
[1747635336409,1.17965313,102970.0,102960.0,0.02088229]
[1747635337052,1.17965313,102970.0,102960.0,0.00548229]
[1747635337530,0.93117318,102970.0,102960.0,0.00548229]
[1747635337743,0.93117318,102970.0,102960.0,0.02178229]
[1747635338368,1.17965313,102970.0,102960.0,0.02178229]
[1747635339685,1.17965313,102970.0,102960.0,0.00548229]
[1747635339889,0.93117318,102970.0,102960.0,0.00548229]
[1747635340540,0.71817318,102970.0,102960.0,0.00548229]
[1747635340753,0.92845318,102970.0,102960.0,0.03708229]
[1747635342943,0.92845318,102970.0,102960.0,0.04314315]
[1747635343378,0.92845318,102970.0,102960.0,0.02724315]
[1747635343630,1.17693313,102970.0,102960.0,0.01154315]
[1747635345430,1.19293313,102970.0,102960.0,0.01154315]
[1747635345610,1.20793313,102970.0,102960.0,0.01154315]
[1747635350263,1.20793313,102970.0,102960.0,0.31154315]
[1747635350464,1.20793313,102970.0,102960.0,0.30854315]
[1747635350681,1.20793313,102970.0,102960.0,0.30954315]
[1747635351437,1.20793313,102970.0,102960.0,0.30754315]
[1747635351602,1.20793313,102970.0,102960.0,0.30854315]
[1747635354285,1.54793313,102970.0,102960.0,0.30854315]
[1747635357013,1.56247398,102970.0,102960.0,0.30854315]
[1747635359450,1.56247398,102970.0,102960.0,0.30248229]
[1747635359695,1.98191398,102970.0,102960.0,0.30248229]
[1747635360289,2.34545344,102970.0,102960.0,0.30248229]
[1747635361008,2.09697349,102970.0,102960.0,0.30248229]
[1747635361544,2.09697349,102970.0,102960.0,0.30148229]
[1747635361714,2.09897349,102970.0,102960.0,0.30148229]
[1747635361922,2.34745344,102970.0,102960.0,0.30148229]
[1747635363374,2.34745344,102970.0,102960.0,0.30048229]
[1747635363570,2.34945344,102970.0,102960.0,0.30048229]
[1747635363844,2.40764344,102970.0,102960.0,0.30048229]
[1747635364335,0.84773685,102940.0,102930.0,0.00760093]
[1747635364542,1.35932625,102940.0,102930.0,0.00764909]
[1747635364756,1.55341625,102940.0,102930.0,0.00764909]
[1747635365697,1.55313625,102940.0,102930.0,4.816e-05]
[1747635366130,1.55313625,102940.0,102930.0,0.00104816]
[1747635366536,1.56266899,102940.0,102930.0,0.00104816]
[1747635366964,1.56266899,102940.0,102930.0,0.00304816]
[1747635368797,1.55313625,102940.0,102930.0,0.00304816]
[1747635373790,1.55313625,102940.0,102930.0,0.00204816]
[1747635374416,1.55313625,102940.0,102930.0,0.00184816]
[1747635374830,0.21375758,102920.0,102910.0,0.033]
[1747635374981,0.72402698,102920.0,102910.0,0.0331446]
[1747635376001,0.72402698,102920.0,102910.0,0.0361446]
[1747635377618,0.72402698,102920.0,102910.0,0.0196446]
[1747635377825,0.72402698,102920.0,102910.0,0.0226446]
[1747635379352,0.72402698,102920.0,102910.0,0.0384446]
[1747635380406,0.72402698,102920.0,102910.0,0.0226446]
[1747635381761,0.72402698,102920.0,102910.0,0.0380446]
[1747635382562,0.72402698,102920.0,102910.0,0.0226446]
[1747635383537,0.72402698,102920.0,102910.0,0.0389446]
[1747635387281,0.72402698,102920.0,102910.0,0.0226446]
[1747635393702,0.72402698,102920.0,102910.0,0.02875468]
[1747635394488,0.72402698,102920.0,102910.0,0.02375468]
[1747635394689,0.72402698,102920.0,102910.0,0.01225468]
[1747635396449,0.91917764,102920.0,102910.0,0.01225468]
[1747635396656,1.59048855,102920.0,102910.0,0.01225468]
[1747635396828,1.79457855,102920.0,102910.0,0.01225468]
[1747635397077,1.79457855,102920.0,102910.0,0.0061446]
[1747635397289,1.92101034,102920.0,102910.0,0.0061446]
[1747635397500,1.91101034,102920.0,102910.0,0.0001446]
[1747635397699,1.83328878,102920.0,102910.0,0.0001446]
[1747635403557,1.83628878,102920.0,102910.0,0.0001446]
[1747635404676,1.42860878,102920.0,102910.0,0.0001446]
[1747635404935,1.83424878,102920.0,102910.0,0.0001446]
[1747635410479,1.42860878,102920.0,102910.0,0.0001446]
[1747635410684,1.73210878,102920.0,102910.0,0.0001446]
[1747635410793,1.73214878,102920.0,102910.0,0.0001446]
[1747635412083,1.83424878,102920.0,102910.0,0.0001446]
[1747635415491,1.82420878,102920.0,102910.0,0.0001446]
[1747635415740,1.41860878,102920.0,102910.0,0.0001446]
[1747635415954,1.82420878,102920.0,102910.0,0.0001446]
[1747635419745,1.79996046,102920.0,102910.0,0.0001446]
[1747635420155,1.79984046,102920.0,102910.0,0.0001446]
[1747635421141,1.12912355,102920.0,102910.0,0.0001446]
[1747635421349,1.4302327,102920.0,102910.0,0.0001446]
[1747635421584,1.43477355,102920.0,102910.0,0.0319446]
[1747635421800,1.44477355,102920.0,102910.0,0.0319446]
[1747635422028,0.91659698,102920.0,102910.0,0.0319446]
[1747635422961,1.25659698,102920.0,102910.0,0.0319446]
[1747635424938,1.25655698,102920.0,102910.0,0.0319446]
[1747635425602,0.85115698,102920.0,102910.0,0.0319446]
[1747635425807,1.25655698,102920.0,102910.0,0.0319446]
[1747635426017,0.51115698,102920.0,102910.0,0.0319446]
[1747635426216,0.71383698,102920.0,102910.0,0.0319446]
[1747635426617,0.71083698,102920.0,102910.0,0.0319446]
[1747635427325,0.70783698,102920.0,102910.0,0.0319446]
[1747635427499,0.91055698,102920.0,102910.0,0.0319446]
[1747635429347,0.70787698,102920.0,102910.0,0.0319446]
[1747635429562,0.91051698,102920.0,102910.0,0.0319446]
[1747635431951,1.15976633,102920.0,102910.0,0.0319446]
[1747635432157,1.15976633,102920.0,102910.0,0.0162446]
[1747635432378,0.91051698,102920.0,102910.0,0.0316446]
[1747635433481,0.91043698,102920.0,102910.0,0.0316446]
[1747635437790,0.70783698,102920.0,102910.0,0.0316446]
[1747635437999,0.91039698,102920.0,102910.0,0.0316446]
[1747635439759,0.70771698,102920.0,102910.0,0.0316446]
[1747635440013,0.70767698,102920.0,102910.0,0.0316446]
[1747635441401,0.61036758,102920.0,102910.0,0.0316446]
[1747635441603,0.50515698,102920.0,102910.0,0.0316446]
[1747635444932,0.50515698,102920.0,102910.0,0.0001446]
[1747635446179,0.66871536,102920.0,102910.0,0.0001446]
[1747635446379,0.70021536,102920.0,102910.0,0.0001446]
[1747635449303,1.04021536,102920.0,102910.0,0.0001446]
[1747635449509,1.32562399,102920.0,102910.0,0.0001446]
[1747635449714,1.33562399,102920.0,102910.0,0.0001446]
[1747635450614,1.33862399,102920.0,102910.0,0.0001446]
[1747635450817,1.34062399,102920.0,102910.0,0.0001446]
[1747635451086,1.24331459,102920.0,102910.0,0.0001446]
[1747635451288,1.24131459,102920.0,102910.0,0.0001446]
[1747635451651,1.16655766,102920.0,102910.0,0.0001446]
[1747635457455,1.22474766,102920.0,102910.0,0.0001446]
[1747635458335,1.62962766,102920.0,102910.0,0.0001446]
[1747635460874,1.36903766,102920.0,102910.0,0.0001446]
[1747635461093,1.57143766,102920.0,102910.0,0.0001446]
[1747635462881,1.35903766,102920.0,102910.0,0.0001446]
[1747635463095,1.56139766,102920.0,102910.0,0.0001446]
[1747635463323,1.52989766,102920.0,102910.0,0.0001446]
[1747635463760,1.56189766,102920.0,102910.0,0.0001446]
[1747635468349,1.56169766,102920.0,102910.0,0.0001446]
[1747635469744,1.54619766,102920.0,102910.0,0.0001446]
[1747635469910,1.52965766,102920.0,102910.0,0.0001446]
[1747635470892,1.51965766,102920.0,102910.0,0.0001446]
[1747635471094,1.54525766,102920.0,102910.0,0.0001446]
[1747635471961,1.94933766,102920.0,102910.0,0.0001446]
[1747635472387,0.93067698,102920.0,102910.0,0.0307446]
[1747635472613,1.13315698,102920.0,102910.0,0.0307446]
[1747635472827,1.33543698,102920.0,102910.0,0.0307446]
[1747635473496,1.33243698,102920.0,102910.0,0.0307446]
[1747635473709,1.32943698,102920.0,102910.0,0.0307446]
[1747635475067,0.92467698,102920.0,102910.0,0.0307446]
[1747635475271,1.49295295,102920.0,102910.0,0.0001446]
[1747635475575,1.32939698,102920.0,102910.0,0.0306446]
[1747635479247,1.32907698,102920.0,102910.0,0.0306446]
[1747635480350,1.32903698,102920.0,102910.0,0.0306446]
[1747635480789,1.12683698,102920.0,102910.0,0.0306446]
[1747635481014,1.32899698,102920.0,102910.0,0.0306446]
[1747635481645,1.02952758,102920.0,102910.0,0.0306446]
[1747635481857,0.40764758,102920.0,102910.0,0.0306446]
[1747635482074,0.60980758,102920.0,102910.0,0.03677465]
[1747635482689,0.40764758,102920.0,102910.0,0.03677465]
[1747635482904,0.20380543,102920.0,102910.0,0.26221309]
[1747635483018,0.23295304,102920.0,102910.0,0.26026976]
[1747635483229,0.22323695,102920.0,102910.0,0.26126976]
[1747635483455,0.24266923,102920.0,102910.0,0.60126976]
[1747635483657,0.42728014,102920.0,102910.0,0.5915532]
[1747635483942,0.42728014,102920.0,102910.0,0.60126995]
[1747635484153,0.42728014,102920.0,102910.0,0.60998661]
[1747635484362,0.22323818,102920.0,102910.0,0.62270317]
[1747635484572,0.22323818,102920.0,102910.0,0.6303041]
[1747635484841,0.23295446,102920.0,102910.0,0.64467456]
[1747635485367,0.22323818,102920.0,102910.0,0.64667456]
[1747635485630,0.22323742,102920.0,102910.0,0.75852481]
[1747635485838,0.23295342,102920.0,102910.0,0.74680825]
[1747635486040,0.22323723,102920.0,102910.0,0.75652481]
[1747635486269,0.22323723,102920.0,102910.0,0.75952481]
[1747635486963,0.21352133,102920.0,102910.0,0.75952481]
[1747635487437,0.42727929,102920.0,102910.0,0.62824134]
[1747635487660,0.41756377,102920.0,102910.0,0.59909061]
[1747635487880,0.40784796,102920.0,102910.0,0.60880783]
[1747635488088,0.38841568,102920.0,102910.0,0.40474604]
[1747635488535,0.38841568,102920.0,102910.0,0.41446326]
[1747635489341,0.38841568,102920.0,102910.0,0.06474604]
[1747635489554,0.38841568,102920.0,102910.0,0.05037558]
[1747635490406,0.38841568,102920.0,102910.0,0.0366446]
[1747635493120,0.38841568,102920.0,102910.0,0.04275966]
[1747635493557,0.38841568,102920.0,102910.0,0.2487646]
[1747635493796,0.38841568,102920.0,102910.0,0.04275966]
[1747635496752,0.38841568,102920.0,102910.0,0.24682145]
[1747635496966,0.38841568,102920.0,102910.0,0.05247688]
[1747635497094,0.38841568,102920.0,102910.0,0.04275966]
[1747635497296,0.38841568,102920.0,102910.0,0.25653839]
[1747635497512,0.38841568,102920.0,102910.0,0.24682145]
[1747635498093,0.38841568,102920.0,102910.0,0.28077003]
[1747635498967,0.2135219,102920.0,102910.0,0.29048659]
[1747635499186,0.23295437,102920.0,102910.0,0.29048659]
[1747635499831,0.24266989,102920.0,102910.0,0.28077003]
[1747635500058,0.24266989,102920.0,102910.0,0.30020344]
[1747635500261,0.24266989,102920.0,102910.0,0.28077021]
[1747635500262,0.42728005,102920.0,102910.0,0.28077021]
[1747635500464,0.42728005,102920.0,102910.0,0.30020381]
[1747635500904,0.22323809,102920.0,102910.0,0.30020268]
[1747635501616,0.23295437,102920.0,102910.0,0.30020268]
[1747635501823,0.23295437,102920.0,102910.0,0.29808705]
[1747635503211,0.42728005,102920.0,102910.0,0.28837039]
[1747635503959,0.41756424,102920.0,102910.0,0.28837039]
[1747635506018,0.41756424,102920.0,102910.0,0.29808705]
[1747635507330,0.41756424,102920.0,102910.0,0.26893679]
[1747635507540,0.40784815,102920.0,102910.0,0.25921976]
[1747635507888,0.39813196,102920.0,102910.0,0.03437519]
[1747635508101,0.63197196,102920.0,102910.0,0.01986059]
[1747635508323,0.59997196,102920.0,102910.0,0.01986059]
[1747635509200,0.59997111,102920.0,102910.0,0.26678248]
[1747635509404,0.43479314,102920.0,102910.0,0.2745558]
[1747635509586,0.24266914,102920.0,102910.0,0.28427236]
[1747635509797,0.41756377,102920.0,102910.0,0.26483914]
[1747635510002,0.2135219,102920.0,102910.0,0.28427255]
[1747635510126,0.22323771,102920.0,102910.0,0.28427255]
[1747635510335,0.23295399,102920.0,102910.0,0.28427255]
[1747635510542,0.41756405,102920.0,102910.0,0.25512229]
[1747635510742,0.41756405,102920.0,102910.0,0.26483923]
[1747635510938,0.41756405,102920.0,102910.0,0.01986059]
[1747635511142,0.40784815,102920.0,102910.0,0.06048302]
[1747635511578,0.40784815,102920.0,102910.0,0.07568302]
[1747635512549,0.40784815,102920.0,102910.0,0.27974472]
[1747635512759,0.40784815,102920.0,102910.0,0.07568302]
[1747635512760,0.39813196,102920.0,102910.0,0.07568302]
[1747635514221,0.39813196,102920.0,102910.0,0.27002759]
[1747635514644,0.39813196,102920.0,102910.0,0.27974462]